bitfinex/quotes_BTCUSD_20250330
["timestamp","ask_amount","ask_price","bid_price","bid_amount"]
[1743299037356,0.632402,83167.0,83159.0,0.0003372]
[1743299037569,0.012024,83163.0,83162.0,4e-07]
[1743299037747,2.42155377,83163.0,83162.0,4e-07]
[1743299037953,2.46392998,83163.0,83162.0,4e-07]
[1743299038151,0.552558,83149.0,83148.0,8.1e-07]
[1743299038353,0.58786777,83149.0,83148.0,8.1e-07]
[1743299038557,0.58786777,83149.0,83148.0,4.801e-05]
[1743299038930,0.63024398,83149.0,83148.0,4.801e-05]
[1743299039156,0.80467768,83149.0,83148.0,4.801e-05]
[1743299039497,0.76936791,83149.0,83148.0,4.801e-05]
[1743299040457,0.56176791,83149.0,83148.0,4.801e-05]
[1743299040773,0.689518,83149.0,83148.0,4.801e-05]
[1743299041366,0.690518,83149.0,83148.0,4.801e-05]
[1743299041983,0.689518,83149.0,83148.0,4.801e-05]
[1743299042282,0.693518,83149.0,83148.0,4.801e-05]
[1743299043430,0.7261939,83149.0,83148.0,1e-08]
[1743299043860,0.74505315,83149.0,83148.0,1e-08]
[1743299044214,0.55264,83122.0,83119.0,0.0456]
[1743299044415,1.26252,83122.0,83121.0,0.00447266]
[1743299045191,1.27374497,83122.0,83121.0,0.00447266]
[1743299045395,1.31612118,83122.0,83121.0,0.00447266]
[1743299045625,1.31612118,83122.0,83121.0,0.00547266]
[1743299045821,1.17916118,83122.0,83121.0,0.00547266]
[1743299046025,1.27378497,83122.0,83121.0,0.00447266]
[1743299046313,1.27578497,83122.0,83121.0,0.00447266]
[1743299046524,1.27778497,83122.0,83121.0,0.00447266]
[1743299048168,1.28989504,83122.0,83121.0,0.00447266]
[1743299050686,1.31227436,83122.0,83121.0,0.00447266]
[1743299054123,1.28989504,83122.0,83121.0,0.00447266]
[1743299055320,0.252676,83110.0,83109.0,0.0804]
[1743299055535,0.252676,83110.0,83109.0,0.08044719]
[1743299056042,0.28179491,83110.0,83109.0,0.08044719]
[1743299056664,0.28179491,83110.0,83109.0,0.08144719]
[1743299057716,0.02911891,83110.0,83109.0,0.08144719]
[1743299058087,0.02911891,83110.0,83109.0,0.39620015]
[1743299058446,0.02911891,83110.0,83109.0,0.33412619]
[1743299059275,0.02911891,83110.0,83109.0,0.08144719]
[1743299059631,0.02911891,83110.0,83109.0,0.08161599]
[1743299062193,0.02911891,83110.0,83109.0,0.09364799]
[1743299065140,0.02911891,83110.0,83109.0,0.08161599]
[1743299066620,0.02911891,83110.0,83109.0,0.09364799]
[1743299070889,0.01122497,83110.0,83109.0,0.09364799]
[1743299071493,0.01122497,83110.0,83109.0,0.11059502]
[1743299071689,0.01122497,83110.0,83109.0,0.15528884]
[1743299072899,0.01122497,83110.0,83109.0,0.15428884]
[1743299073107,0.01122497,83110.0,83109.0,0.15528884]
[1743299073504,0.01122497,83110.0,83109.0,0.16746089]
[1743299073848,0.01122497,83110.0,83109.0,0.16946089]
[1743299075910,0.01122497,83110.0,83109.0,0.15728884]
[1743299076139,0.01122497,83110.0,83109.0,0.14274799]
[1743299076517,0.56390097,83110.0,83109.0,0.00321599]
[1743299078971,0.552676,83110.0,83109.0,0.00321599]
[1743299081428,0.56483038,83110.0,83109.0,0.00321599]
[1743299081999,0.56483038,83110.0,83109.0,0.00121599]
[1743299082315,0.56483038,83110.0,83109.0,0.00021599]
[1743299082539,0.56483038,83110.0,83109.0,0.00121599]
[1743299083535,0.56483038,83110.0,83109.0,0.00221599]
[1743299088209,0.57612078,83110.0,83109.0,0.00221599]
[1743299089277,0.57612078,83110.0,83109.0,0.00021599]
[1743299089711,0.552682,83108.0,83107.0,0.0003374]
[1743299089929,0.552682,83108.0,83107.0,0.00047881]
[1743299091550,0.5639724,83108.0,83107.0,0.00047881]
[1743299095961,0.3112904,83108.0,83107.0,0.00047881]
[1743299097729,0.5639724,83108.0,83107.0,0.00047881]
[1743299100430,0.3112904,83108.0,83107.0,0.00047881]
[1743299100654,0.5519404,83108.0,83107.0,0.00047881]
[1743299100872,0.5639724,83108.0,83107.0,0.00047881]
[1743299101520,0.3112904,83108.0,83107.0,0.00047881]
[1743299102437,0.5519404,83108.0,83107.0,0.00047881]
[1743299102671,0.5639724,83108.0,83107.0,0.00047881]
[1743299103237,0.2639724,83108.0,83107.0,0.00047881]
[1743299104263,0.0112904,83108.0,83107.0,0.00047881]
[1743299104441,0.0112904,83108.0,83107.0,0.04907881]
[1743299105487,0.0233224,83108.0,83107.0,0.04907881]
[1743299105667,0.012032,83108.0,83107.0,0.04907881]
[1743299106586,0.240648,83109.0,83107.0,0.04907881]
[1743299107265,0.3,83110.0,83108.0,0.012032]
[1743299107470,0.3,83110.0,83107.0,0.04907881]
[1743299108892,0.001,83110.0,83107.0,0.04907881]
[1743299109115,0.0003376,83109.0,83107.0,0.04907881]
[1743299112966,0.3003376,83109.0,83107.0,0.04907881]
[1743299116619,0.552682,83108.0,83107.0,0.00047881]
[1743299120096,0.66448281,83108.0,83107.0,0.00047881]
[1743299120633,0.71268281,83108.0,83107.0,0.00047881]
[1743299121638,0.71468281,83108.0,83107.0,0.00047881]
[1743299122026,0.71668281,83108.0,83107.0,0.00047881]
[1743299122254,0.81668281,83108.0,83107.0,0.00047881]
[1743299123944,0.92479943,83108.0,83107.0,0.00047881]
[1743299124137,0.94366841,83108.0,83107.0,0.00047881]
[1743299125862,0.92479943,83108.0,83107.0,0.00047881]
[1743299126255,2.90717564,83108.0,83107.0,0.00047881]
[1743299127970,3.32847564,83108.0,83107.0,0.00047881]
[1743299128315,3.28609943,83108.0,83107.0,0.00047881]
[1743299128712,3.28409943,83108.0,83107.0,0.00047881]
[1743299129325,3.79563643,83108.0,83107.0,8.1e-07]
[1743299129542,3.28509943,83108.0,83107.0,8.1e-07]
[1743299130154,3.32747564,83108.0,83107.0,8.1e-07]
[1743299131136,0.629416,83097.0,83079.0,0.0467]
[1743299131332,0.629416,83097.0,83077.0,0.0812]
[1743299131749,0.629416,83097.0,83073.0,0.0779]
[1743299132709,1.202776,83097.0,83073.0,0.0779]
[1743299133111,1.204776,83097.0,83073.0,0.0779]
[1743299133857,1.22464733,83097.0,83073.0,0.0779]
[1743299134225,1.23376681,83097.0,83073.0,0.0779]
[1743299134659,1.23176681,83097.0,83073.0,0.0779]
[1743299134830,1.28156681,83097.0,83071.0,0.0498]
[1743299135031,1.31688525,83097.0,83071.0,0.0498]
[1743299135232,1.31788525,83097.0,83071.0,0.0498]
[1743299135569,1.31388525,83097.0,83071.0,0.0498]
[1743299135750,1.30001392,83097.0,83071.0,0.0498]
[1743299136944,0.577731,83092.0,83091.0,2e-07]
[1743299137144,0.75710721,83092.0,83091.0,2e-07]
[1743299137963,0.714731,83092.0,83091.0,2e-07]
[1743299138146,0.717731,83092.0,83091.0,2e-07]
[1743299138331,0.694731,83092.0,83091.0,2e-07]
[1743299138534,0.719731,83092.0,83091.0,2e-07]
[1743299138735,0.691731,83092.0,83091.0,2e-07]
[1743299138936,0.719731,83092.0,83091.0,2e-07]
[1743299140087,0.730946,83092.0,83091.0,2e-07]
[1743299141094,0.593946,83092.0,83091.0,2e-07]
[1743299141296,0.694731,83092.0,83091.0,2e-07]
[1743299141491,0.257731,83092.0,83091.0,2e-07]
[1743299142317,0.257731,83092.0,83091.0,0.0807002]
[1743299143217,0.27660494,83092.0,83091.0,0.0807002]
[1743299143890,0.27360494,83092.0,83091.0,0.080869]
[1743299144157,0.27560494,83092.0,83091.0,0.080869]
[1743299144433,0.27360494,83092.0,83091.0,0.080869]
[1743299144574,0.27460494,83092.0,83091.0,0.080869]
[1743299145591,0.02187394,83092.0,83091.0,0.080869]
[1743299145794,0.003,83092.0,83091.0,0.080869]
[1743299146193,0.015034,83092.0,83091.0,0.080869]
[1743299147287,0.002,83092.0,83091.0,0.080869]
[1743299147697,0.252729,83093.0,83091.0,0.080869]
[1743299147894,0.013034,83092.0,83091.0,0.080869]
[1743299148586,0.012034,83092.0,83091.0,0.080869]
[1743299150391,0.61852553,83097.0,83091.0,0.080869]
[1743299150392,0.60940605,83097.0,83091.0,0.080869]
[1743299150555,0.012034,83095.0,83091.0,0.080869]
[1743299150756,0.001,83092.0,83091.0,0.080869]
[1743299151063,0.013034,83092.0,83091.0,0.080869]
[1743299151271,0.012034,83092.0,83091.0,0.080869]
[1743299152104,0.312034,83092.0,83091.0,0.080869]
[1743299153942,0.313034,83092.0,83091.0,0.080869]
[1743299160197,0.301,83092.0,83091.0,0.080869]
[1743299161344,0.001,83092.0,83091.0,0.142203]
[1743299161538,0.001,83092.0,83091.0,0.130169]
[1743299161744,0.253731,83092.0,83091.0,0.130169]
[1743299161954,0.553731,83092.0,83091.0,0.130169]
[1743299169137,0.301,83092.0,83091.0,0.130169]
[1743299169395,0.301,83092.0,83091.0,0.142203]
[1743299169758,0.3013372,83092.0,83091.0,0.142203]
[1743299174160,0.3013372,83092.0,83091.0,0.143203]
[1743299174335,0.3003372,83092.0,83091.0,0.143203]
[1743299177070,0.0003372,83092.0,83091.0,0.143203]
[1743299179848,0.0003372,83092.0,83091.0,0.15774385]
[1743299180052,0.0003372,83092.0,83091.0,0.17420844]
[1743299180255,0.0003372,83092.0,83091.0,0.18653201]
[1743299180860,0.0003372,83092.0,83091.0,0.18553201]
[1743299181247,0.0003372,83092.0,83091.0,0.15774385]
[1743299211685,0.0003372,83092.0,83091.0,0.14570985]
[1743299212093,0.0003372,83092.0,83091.0,0.55780925]
[1743299212295,0.0003372,83092.0,83091.0,0.56984325]
[1743299216713,0.0003372,83092.0,83091.0,0.5432684]
[1743299216945,0.0003372,83092.0,83091.0,0.47710925]
[1743299217118,0.0003372,83092.0,83091.0,0.4132684]
[1743299217119,0.2530682,83092.0,83091.0,0.4132684]
[1743299217942,0.2530682,83092.0,83091.0,0.001169]
[1743299219608,0.0003372,83092.0,83091.0,0.001169]
[1743299224840,0.2530682,83092.0,83091.0,0.01570985]
[1743299225024,0.0123712,83092.0,83091.0,0.01570985]
[1743299225363,0.2530682,83092.0,83091.0,0.01570985]
[1743299226094,0.0123712,83092.0,83091.0,0.01570985]
[1743299226270,0.2530682,83092.0,83091.0,0.01570985]
[1743299231271,0.0003372,83092.0,83091.0,0.01570985]
[1743299234179,0.0123712,83092.0,83091.0,0.01570985]
[1743299236790,0.0003372,83092.0,83091.0,0.01570985]
[1743299237977,0.0123712,83092.0,83091.0,0.01570985]
[1743299238602,0.0123712,83092.0,83091.0,0.001169]
[1743299244104,0.0123712,83092.0,83091.0,0.000169]
[1743299244511,0.240696,83093.0,83091.0,0.002169]
[1743299245546,0.012034,83092.0,83091.0,0.002169]
[1743299246166,0.012034,83092.0,83091.0,0.000169]
[1743299246520,0.012034,83092.0,83091.0,0.002169]
[1743299246703,0.012034,83092.0,83091.0,0.000169]
[1743299247110,0.012034,83092.0,83091.0,0.002169]
[1743299247585,0.312034,83092.0,83091.0,0.002169]
[1743299248161,0.390034,83092.0,83091.0,0.002169]
[1743299248381,0.43241021,83092.0,83091.0,0.002169]
[1743299248925,0.390034,83092.0,83091.0,0.002169]
[1743299249351,0.390034,83092.0,83091.0,0.000169]
[1743299249737,0.392034,83092.0,83091.0,0.000169]
[1743299250093,0.395034,83092.0,83091.0,0.000169]
[1743299250516,0.392034,83092.0,83091.0,0.000169]
[1743299251011,0.395034,83092.0,83091.0,0.000169]
[1743299252014,0.3953712,83092.0,83091.0,0.000169]
[1743299252416,0.41424549,83092.0,83091.0,0.000169]
[1743299252620,0.50793902,83092.0,83091.0,0.000169]
[1743299252777,0.41424549,83092.0,83091.0,0.000169]
[1743299253693,0.68405449,83092.0,83091.0,0.000169]
[1743299253891,0.7264307,83092.0,83091.0,0.000169]
[1743299254548,0.76177869,83092.0,83091.0,0.000169]
[1743299255817,0.7429044,83092.0,83091.0,0.000169]
[1743299256243,0.7429044,83092.0,83091.0,1e-06]
[1743299257016,0.7379044,83092.0,83091.0,1e-06]
[1743299257495,0.7449044,83092.0,83091.0,1e-06]
[1743299259128,0.7499044,83092.0,83091.0,1e-06]
[1743299259342,0.7499044,83092.0,83064.0,0.0003372]
[1743299259343,0.252813,83065.0,83064.0,0.0003372]
[1743299259556,0.552813,83065.0,83064.0,0.0003372]
[1743299262949,0.56515955,83065.0,83064.0,0.0003372]
[1743299269121,0.58403766,83065.0,83064.0,0.0003372]
[1743299272889,0.6090568,83065.0,83064.0,0.0003372]
[1743299275596,0.6080568,83065.0,83064.0,0.0003372]
[1743299275797,0.59017869,83065.0,83064.0,2e-07]
[1743299276246,0.66747869,83065.0,83064.0,2e-07]
[1743299276542,0.70182806,83065.0,83064.0,2e-07]
[1743299276977,0.70482806,83065.0,83064.0,2e-07]
[1743299277476,0.70182806,83065.0,83064.0,2e-07]
[1743299278373,0.70282806,83065.0,83064.0,2e-07]
[1743299278727,0.70682806,83065.0,83064.0,2e-07]
[1743299279157,0.72470791,83065.0,83064.0,2e-07]
[1743299279572,0.72670791,83065.0,83064.0,2e-07]
[1743299280760,0.61405854,83065.0,83064.0,2e-07]
[1743299281243,0.64942996,83065.0,83064.0,2e-07]
[1743299282176,0.61405854,83065.0,83064.0,2e-07]
[1743299282374,0.64943871,83065.0,83064.0,2e-07]
[1743299285870,0.63055886,83065.0,83064.0,2e-07]
[1743299286077,0.552822,83062.0,83061.0,2e-07]
[1743299286777,0.67538097,83062.0,83061.0,2e-07]
[1743299286989,0.63558393,83062.0,83061.0,2e-07]
[1743299288004,0.63658393,83062.0,83061.0,2e-07]
[1743299288411,0.58920772,83062.0,83061.0,2e-07]
[1743299289018,0.59220772,83062.0,83061.0,2e-07]
[1743299290206,1.16588772,83062.0,83061.0,2e-07]
[1743299290576,1.18476923,83062.0,83061.0,2e-07]
[1743299290804,0.252874,83045.0,83044.0,0.0485]
[1743299290999,0.552874,83045.0,83044.0,0.04854725]
[1743299293358,0.56197444,83045.0,83044.0,0.04854725]
[1743299297073,0.58564092,83045.0,83044.0,0.04854725]
[1743299297590,0.57654048,83045.0,83044.0,0.04854725]
[1743299300921,0.57654048,83045.0,83044.0,0.04871595]
[1743299301332,0.57654048,83045.0,83044.0,0.13031595]
[1743299301526,0.3,83045.0,83044.0,0.14235695]
[1743299301737,0.3,83045.0,83044.0,0.1568978]
[1743299302319,0.3,83045.0,83044.0,0.1448568]
[1743299305568,0.252874,83045.0,83044.0,0.1448568]
[1743299306371,0.312041,83049.0,83046.0,0.1267]
[1743299306571,0.552865,83048.0,83047.0,0.1267]
[1743299306771,0.3,83048.0,83047.0,0.1267]
[1743299307860,0.540824,83048.0,83047.0,0.1267]
[1743299308031,0.552865,83048.0,83047.0,0.1267]
[1743299311781,0.3,83048.0,83047.0,0.379568]
[1743299312163,0.3,83048.0,83047.0,0.39410885]
[1743299312931,0.540824,83048.0,83047.0,0.14124085]
[1743299313103,0.552865,83048.0,83047.0,0.1267]
[1743299320103,0.552865,83048.0,83047.0,0.0451]
[1743299322619,0.252874,83045.0,83044.0,0.00021595]
[1743299323415,0.552874,83045.0,83044.0,0.00021595]
[1743299325007,0.553874,83045.0,83044.0,0.00021595]
[1743299325159,0.64756753,83045.0,83044.0,0.00021595]
[1743299325368,0.553874,83045.0,83044.0,0.00021595]
[1743299325564,0.552874,83045.0,83044.0,0.00021595]
[1743299326875,0.553874,83045.0,83044.0,0.00021595]
[1743299328357,0.57852962,83045.0,83044.0,0.00021595]
[1743299331692,0.57852962,83045.0,83044.0,0.00017145]
[1743299332701,0.58772347,83045.0,83044.0,0.00017145]
[1743299340742,0.56306785,83045.0,83044.0,0.07967145]
[1743299348682,0.56340505,83045.0,83044.0,0.07967145]
[1743299349997,0.56340505,83045.0,83044.0,0.00017145]
[1743299351966,0.5987976,83045.0,83044.0,0.00017145]
[1743299352682,0.5977976,83045.0,83044.0,0.00017145]
[1743299353106,0.5997976,83045.0,83044.0,0.00017145]
[1743299353863,0.5977976,83045.0,83044.0,0.00017145]
[1743299354165,0.5997976,83045.0,83044.0,0.00017145]
[1743299354389,0.6007976,83045.0,83044.0,0.00017145]
[1743299357202,0.6834976,83045.0,83044.0,0.00017145]
[1743299357553,0.68281749,83045.0,83044.0,0.00017145]
[1743299358573,0.68281749,83045.0,83044.0,4.5e-07]
[1743299358998,0.68081749,83045.0,83044.0,4.5e-07]
[1743299359158,0.79339482,83045.0,83044.0,4.5e-07]
[1743299359367,0.70170129,83045.0,83044.0,4.5e-07]
[1743299359793,0.69970129,83045.0,83044.0,4.5e-07]
[1743299360124,0.75888129,83045.0,83044.0,4.5e-07]
[1743299360437,0.75788129,83045.0,83044.0,4.5e-07]
[1743299360891,0.62100129,83045.0,83044.0,4.5e-07]
[1743299361107,0.75888129,83045.0,83044.0,4.5e-07]
[1743299361249,0.75788129,83045.0,83044.0,4.5e-07]
[1743299361471,0.76088129,83045.0,83044.0,4.5e-07]
[1743299361676,0.5086874,83045.0,83044.0,4.5e-07]
[1743299361915,0.58928885,83045.0,83044.0,4.5e-07]
[1743299362166,0.72616885,83045.0,83044.0,4.5e-07]
[1743299362695,0.58928885,83045.0,83044.0,4.5e-07]
[1743299364508,0.58928885,83045.0,83044.0,0.07890045]
[1743299364906,0.57040505,83045.0,83044.0,0.07890045]
[1743299367221,0.5612112,83045.0,83044.0,0.07890045]
[1743299367899,0.5582112,83045.0,83044.0,0.07890045]
[1743299368312,0.5602112,83045.0,83044.0,0.07890045]
[1743299368489,0.5552112,83045.0,83044.0,0.07890045]
[1743299368875,0.5582112,83045.0,83044.0,0.07890045]
[1743299369642,0.5582112,83045.0,83044.0,4.5e-07]
[1743299369643,0.56736381,83045.0,83044.0,4.5e-07]
[1743299369774,0.60974002,83045.0,83044.0,4.5e-07]
[1743299370198,0.56736381,83045.0,83044.0,4.5e-07]
[1743299371093,0.56536381,83045.0,83044.0,4.5e-07]
[1743299371613,0.56236381,83045.0,83044.0,4.5e-07]
[1743299371985,0.60271552,83045.0,83044.0,4.5e-07]
[1743299372345,0.59971552,83045.0,83044.0,4.5e-07]
[1743299372761,0.60271552,83045.0,83044.0,4.5e-07]
[1743299375178,0.56736381,83045.0,83044.0,4.5e-07]
[1743299376927,0.3173782,83045.0,83044.0,0.04580045]
[1743299377693,0.3143782,83045.0,83044.0,0.04580045]
[1743299378093,0.3133782,83045.0,83044.0,0.04580045]
[1743299393770,0.3133782,83045.0,83044.0,0.45789985]
[1743299398512,0.32245047,83045.0,83044.0,0.41209985]
[1743299398675,0.35782195,83045.0,83044.0,0.41209985]
[1743299398885,0.252911,83033.0,83032.0,0.0092047]
[1743299399079,0.552911,83033.0,83032.0,0.0092047]
[1743299405239,0.552911,83033.0,83032.0,0.0548047]
[1743299406813,0.552911,83033.0,83032.0,0.0549733]
[1743299408272,0.57672774,83033.0,83032.0,0.0549733]
[1743299408830,0.595613,83033.0,83032.0,0.0549733]
[1743299409993,0.57672774,83033.0,83032.0,0.0549733]
[1743299414262,0.59561299,83033.0,83032.0,0.0549733]
[1743299415227,0.34270199,83033.0,83032.0,0.0549733]
[1743299415410,0.32381674,83033.0,83032.0,0.1368733]
[1743299415618,0.32381674,83033.0,83032.0,0.16345715]
[1743299416239,0.32381674,83033.0,83032.0,0.15141415]
[1743299417520,0.33585974,83033.0,83032.0,0.15141415]
[1743299418147,0.312043,83033.0,83032.0,0.15141415]
[1743299420259,0.312043,83033.0,83032.0,0.151415]
[1743299421131,0.3,83033.0,83032.0,0.151415]
[1743299423210,0.3,83033.0,83032.0,0.163458]
[1743299423410,0.01922149,83044.0,83039.0,0.012042]
[1743299423642,0.3,83041.0,83038.0,0.01454085]
[1743299423833,0.252895,83038.0,83037.0,0.01454085]
[1743299424031,0.552895,83038.0,83037.0,0.01454085]
[1743299424373,0.312042,83037.0,83036.0,0.0826]
[1743299425245,0.012042,83037.0,83036.0,0.0826]
[1743299426837,0.013042,83037.0,83036.0,0.0826]
[1743299430697,0.001,83037.0,83036.0,0.335501]
[1743299430869,0.001,83037.0,83036.0,0.35004185]
[1743299431371,0.013042,83037.0,83036.0,0.09714085]
[1743299431732,0.012042,83037.0,83036.0,0.09714085]
[1743299432070,0.012042,83037.0,83036.0,0.0971417]
[1743299432370,0.012042,83040.0,83037.0,0.01454085]
[1743299432601,0.252889,83040.0,83037.0,0.01454085]
[1743299432793,0.012042,83038.0,83037.0,0.01454085]
[1743299433294,0.552895,83038.0,83037.0,0.01454085]
[1743299433642,0.3,83038.0,83037.0,0.01454085]
[1743299434446,0.3,83038.0,83037.0,0.02658285]
[1743299435901,0.3,83038.0,83037.0,0.01454085]
[1743299437670,0.3,83038.0,83037.0,0.02658285]
[1743299437872,0.240811,83053.0,83042.0,0.0781]
[1743299437873,0.00045051,83045.0,83042.0,0.0781]
[1743299438210,0.00045051,83045.0,83042.0,0.1243]
[1743299438385,0.57700258,83043.0,83042.0,0.1243]
[1743299439148,0.57800258,83043.0,83042.0,0.1243]
[1743299439924,0.32512258,83043.0,83042.0,0.377183]
[1743299440132,0.301,83043.0,83042.0,0.377183]
[1743299441862,0.3,83043.0,83042.0,0.1243]
[1743299442024,0.301,83043.0,83042.0,0.1243]
[1743299442233,0.55388,83043.0,83042.0,0.1243]
[1743299443713,0.5657917,83043.0,83042.0,0.1243]
[1743299443924,0.5657917,83043.0,83042.0,0.12430085]
[1743299444961,0.3129117,83043.0,83042.0,0.12430085]
[1743299445175,0.0129117,83043.0,83042.0,0.1508837]
[1743299445377,0.001,83043.0,83042.0,0.1508837]
[1743299446378,0.01237036,83044.0,83043.0,0.26742085]
[1743299446949,0.01237036,83044.0,83043.0,0.01454085]
[1743299447272,0.01237036,83044.0,83043.0,0.02658185]
[1743299448229,0.01237036,83044.0,83043.0,0.01454085]
[1743299449759,0.01237036,83044.0,83043.0,0.0145417]
[1743299450617,0.0003372,83044.0,83043.0,0.0265827]
[1743299451126,0.0003372,83044.0,83043.0,0.1042827]
[1743299452236,0.0003372,83044.0,83043.0,0.14547819]
[1743299452443,0.0003372,83044.0,83043.0,0.1430702]
[1743299456575,0.0003372,83044.0,83043.0,0.1432388]
[1743299461560,0.00033635,83044.0,83043.0,0.24836211]
[1743299464892,0.00033635,83044.0,83043.0,0.14323795]
[1743299480949,0.00033635,83044.0,83043.0,0.14564566]
[1743299481153,0.00033635,83044.0,83043.0,0.14823795]
[1743299482196,0.00033635,83044.0,83043.0,0.14923795]
[1743299482340,0.00133635,83044.0,83043.0,0.15223795]
[1743299482541,0.00133635,83044.0,83043.0,0.25826203]
[1743299483395,0.00133635,83044.0,83043.0,0.25726203]
[1743299483797,0.00233635,83044.0,83043.0,0.25826203]
[1743299485590,0.0003374,83065.0,83060.0,0.012039]
[1743299485789,0.0003374,83065.0,83060.0,0.28879985]
[1743299485790,0.00038444,83061.0,83060.0,0.28879985]
[1743299486028,0.00038444,83061.0,83060.0,0.40908468]
[1743299486765,0.00038444,83061.0,83060.0,0.42117187]
[1743299486910,0.00038444,83061.0,83060.0,0.66296087]
[1743299487931,0.00038444,83061.0,83060.0,0.66596087]
[1743299490787,0.240746,83075.0,83071.0,0.012037]
[1743299491002,0.012037,83076.0,83072.0,0.42313215]
[1743299491677,0.25282723,83077.0,83072.0,0.67592315]
[1743299492040,4.723e-05,83077.0,83072.0,0.67592315]
[1743299492868,4.723e-05,83077.0,83076.0,0.01454085]
[1743299493128,4.723e-05,83077.0,83076.0,0.10685133]
[1743299493868,4.723e-05,83077.0,83076.0,0.11888833]
[1743299494363,4.723e-05,83077.0,83076.0,0.35863133]
[1743299495063,4.723e-05,83077.0,83076.0,0.26632085]
[1743299495267,0.00104723,83077.0,83076.0,0.26632085]
[1743299495664,4.723e-05,83077.0,83076.0,0.26632085]
[1743299496768,4.723e-05,83077.0,83076.0,0.67591215]
[1743299497000,4.723e-05,83077.0,83076.0,0.67491215]
[1743299497515,4.723e-05,83077.0,83076.0,0.74998237]
[1743299498401,4.723e-05,83077.0,83076.0,0.75098237]
[1743299502286,4.723e-05,83077.0,83076.0,0.83138237]
[1743299502491,4.723e-05,83077.0,83076.0,0.75831215]
[1743299503586,4.723e-05,83077.0,83076.0,0.75631215]
[1743299503787,0.00021573,83077.0,83076.0,0.75631215]
[1743299504001,0.00021573,83077.0,83076.0,0.76031215]
[1743299504341,0.00021573,83077.0,83076.0,0.89599215]
[1743299504749,0.00021573,83077.0,83076.0,1.02027698]
[1743299505453,0.01186988,83089.0,83086.0,0.012035]
[1743299505651,0.0123712,83091.0,83087.0,0.01454085]
[1743299506172,0.01247853,83091.0,83087.0,0.01454085]
[1743299506334,0.01247853,83091.0,83087.0,0.09061784]
[1743299506965,0.01247853,83091.0,83087.0,0.10265284]
[1743299507167,0.01247853,83091.0,83087.0,0.10365284]
[1743299508066,0.01247853,83091.0,83087.0,0.02757585]
[1743299511303,0.01247853,83091.0,83089.0,0.01454085]
[1743299511510,0.01247853,83091.0,83090.0,0.42291642]
[1743299512956,0.02451253,83091.0,83090.0,0.42291642]
[1743299513229,0.02451253,83091.0,83090.0,0.42391642]
[1743299513652,0.25317753,83091.0,83090.0,0.42391642]
[1743299513935,0.01247853,83091.0,83090.0,0.42391642]
[1743299514104,0.25317753,83091.0,83090.0,0.42391642]
[1743299514681,0.26521153,83091.0,83090.0,0.42391642]
[1743299516352,0.01247853,83091.0,83090.0,0.43595142]
[1743299520732,0.0003372,83091.0,83090.0,0.43595142]
[1743299521370,0.0003372,83091.0,83090.0,0.42391642]
[1743299523432,0.0003372,83091.0,83090.0,0.42591642]
[1743299525508,0.0123712,83091.0,83090.0,0.42591642]
[1743299530712,0.0123712,83091.0,83090.0,0.41137557]
[1743299531683,0.0003372,83091.0,83090.0,0.48029258]
[1743299531895,0.0003372,83091.0,83090.0,0.55829258]
[1743299532089,0.0003372,83091.0,83090.0,0.51595142]
[1743299537686,0.0003372,83091.0,83090.0,0.51295142]
[1743299538114,0.0003372,83091.0,83090.0,0.51595142]
[1743299538510,0.0003372,83091.0,83090.0,0.65255142]
[1743299538720,0.0003372,83108.0,83103.0,0.252696]
[1743299538938,0.0123806,83104.0,83103.0,0.01454085]
[1743299539131,0.012033,83104.0,83103.0,0.01454085]
[1743299539341,0.012032,83105.0,83103.0,0.01454085]
[1743299539577,0.552688,83107.0,83102.0,0.01454085]
[1743299539854,0.012033,83104.0,83102.0,0.09960724]
[1743299540101,0.24067,83101.0,83100.0,0.01454085]
[1743299540276,0.252703,83101.0,83100.0,0.01454085]
[1743299540481,0.012033,83099.0,83098.0,0.01454085]
[1743299541037,0.252703,83101.0,83098.0,0.01454085]
[1743299541780,0.012033,83099.0,83098.0,0.01454085]
[1743299542640,0.252703,83101.0,83098.0,0.01454085]
[1743299542979,0.252703,83101.0,83098.0,0.01554085]
[1743299543197,0.252703,83101.0,83098.0,0.01454085]
[1743299543326,0.252703,83101.0,83098.0,0.01554085]
[1743299543535,0.252703,83101.0,83100.0,0.01454085]
[1743299545687,0.252703,83101.0,83100.0,0.01554085]
[1743299549390,0.252703,83101.0,83100.0,0.42764085]
[1743299551260,0.0001685,83101.0,83100.0,0.42764085]
[1743299551610,0.0122015,83101.0,83100.0,0.42764085]
[1743299552086,0.2528715,83101.0,83100.0,0.42764085]
[1743299553951,0.0001685,83101.0,83100.0,0.42764085]
[1743299558947,0.0001685,83101.0,83100.0,0.43967385]
[1743299559117,0.0001685,83101.0,83100.0,0.78506454]
[1743299560649,0.0001685,83101.0,83100.0,0.91126454]
[1743299563542,0.0001685,83101.0,83100.0,0.91160154]
[1743299564612,0.0001685,83101.0,83100.0,0.91360154]
[1743299565253,0.0001685,83101.0,83100.0,0.91260154]
[1743299565659,0.0001685,83101.0,83100.0,0.91460154]
[1743299569530,0.0001685,83101.0,83100.0,0.66189554]
[1743299569868,0.012032,83105.0,83104.0,0.171099]
[1743299570081,0.012032,83105.0,83104.0,0.0819013]
[1743299571052,0.252691,83105.0,83104.0,0.0819013]
[1743299571232,0.252691,83105.0,83104.0,0.0829013]
[1743299571803,0.252691,83105.0,83104.0,0.01554085]
[1743299572490,0.012032,83106.0,83105.0,0.01454085]
[1743299573092,0.240659,83105.0,83104.0,0.001]
[1743299573320,0.252691,83105.0,83104.0,0.001]
[1743299573540,0.252691,83105.0,83101.0,0.01454085]
[1743299574192,0.252695,83104.0,83101.0,0.01454085]
[1743299575787,0.252695,83104.0,83103.0,0.01454085]
[1743299577157,0.2528635,83104.0,83103.0,0.01654085]
[1743299581630,0.2528635,83104.0,83103.0,0.18763985]
[1743299582554,0.0122015,83104.0,83103.0,0.18763985]
[1743299583868,0.0001685,83104.0,83103.0,0.18763985]
[1743299584205,0.0122015,83104.0,83103.0,0.18763985]
[1743299590483,0.0122015,83104.0,83103.0,0.18797685]
[1743299592662,0.0001685,83104.0,83103.0,0.18797685]
[1743299592904,0.0001685,83104.0,83103.0,0.51617485]
[1743299593112,0.0001685,83104.0,83103.0,0.61957054]
[1743299593439,0.0001685,83104.0,83103.0,0.56467485]
[1743299595829,0.0001685,83104.0,83103.0,0.31197685]
[1743299596030,0.2408305,83104.0,83103.0,0.31197685]
[1743299596375,0.0001685,83104.0,83103.0,0.31197685]
[1743299596593,0.2408305,83104.0,83103.0,0.31197685]
[1743299596749,0.2528635,83104.0,83103.0,0.18797685]
[1743299596954,0.5528635,83104.0,83103.0,0.173436]
[1743299617950,0.3001685,83104.0,83103.0,0.173436]